[Event "Navidad Barcelona IM2 2024"]
[Site "Barcelona"]
[Date "2024.12.26"]
[Round "1.2"]
[White "Masague Artero, Guerau"]
[Black "Abreu Sanchez, Leonel Jesus"]
[Result "1-0"]
[ECO "D45"]
[WhiteElo "2265"]
[BlackElo "1857"]
[Annotator "RC"]
[PlyCount "93"]
[EventDate "2024.12.26"]
[EventCountry "ESP"]
[SourceTitle "playchess.com"]
[Source "ChessBase"]
[SourceQuality "1"]
[TimeControl "5400+30"]

1. Nf3 {[%emt 0:00:05]} Nf6 {[%emt 0:00:37]} 2. c4 {[%emt 0:00:14]} e6 {[%emt 0:00:55]} 3. b3 {[%emt 0:00:31]} d5 {[%emt 0:02:09]} 4. Bb2 {[%emt 0:00:13]} Bd6 {[%emt 0:02:27]} 5. e3 {[%emt 0:01:19]} O-O {[%emt 0:00:53]} 6. Nc3 {[%emt 0:00:12]} c6 {[%emt 0:02:14]} 7. d4 {[%emt 0:04:34]} Nbd7 {[%emt 0:03:27]} 8. Be2 {[%emt 0:00:11]} Qa5 {[%emt 0:07:49]} 9. O-O {[%emt 0:01:47]} e5 {[%emt 0:12:19]} 10. dxe5 {[%emt 0:09:12]} Nxe5 {[%emt 0:01:21]} 11. cxd5 {[%emt 0:00:17]} cxd5 {[%emt 0:11:59]} 12. Nb5 {[%emt 0:26:56]} Nxf3+ {[%emt 0:07:20]} 13. gxf3 {[%emt 0:00:09]} Be7 {[%emt 0:00:05]} 14. Kh1 {[%emt 0:04:01]} Bf5 {[%emt 0:03:35]} 15. Nd4 {[%emt 0:05:09]} Bg6 {[%emt 0:00:11]} 16. a3 {[%emt 0:04:11]} Rac8 {[%emt 0:02:35]} 17. f4 {[%emt 0:13:02]} h6 {[%emt 0:01:47]} 18. Bd3 {[%emt 0:03:29]} Bh5 {[%emt 0:13:06]} 19. f3 {[%emt 0:00:55]} Ne4 {[%emt 0:04:26]} 20. Nf5 {[%emt 0:01:16]} Bf6 {[%emt 0:00:23]} 21. Bxf6 {[%emt 0:00:26]} Nxf6 {[%emt 0:00:12]} 22. Ne7+ {[%emt 0:04:59]} Kh8 {[%emt 0:00:09]} 23. Nxc8 {[%emt 0:00:03]} Rxc8 {[%emt 0:00:04]} 24. Bf5 {[%emt 0:00:17]} Re8 {[%emt 0:00:06]} 25. Qd4 {[%emt 0:00:52]} Qb5 {[%emt 0:01:16]} 26. Bd3 {[%emt 0:02:09]} Qa5 {[%emt 0:02:26]} 27. b4 {[%emt 0:03:11]} Qa4 {[%emt 0:01:08]} 28. Kg2 {[%emt 0:00:55]} Qd7 {[%emt 0:01:17]} 29. Qxa7 {[%emt 0:03:07]} Ne4 {[%emt 0:10:16]} 30. Qd4 {[%emt 0:06:34]} Nd2 {[%emt 0:01:43]} 31. Bb5 {[%emt 0:00:11]} Qxb5 {[%emt 0:04:00]} 32. Qxd2 {[%emt 0:00:02]} d4 {[%emt 0:01:05]} 33. e4 {[%emt 0:01:58]} f5 {[%emt 0:01:49]} 34. Qxd4 {[%emt 0:02:38]} fxe4 {[%emt 0:01:06]} 35. fxe4 {[%emt 0:00:19]} Qe2+ {[%emt 0:00:18]} 36. Rf2 {[%emt 0:00:06]} Qg4+ {[%emt 0:00:35]} 37. Kh1 {[%emt 0:00:31]} Qh3 {[%emt 0:00:58]} 38. Raf1 {[%emt 0:00:30]} Rc8 {[%emt 0:00:39]} 39. Rg2 {[%emt 0:01:14]} Bg4 {[%emt 0:00:33]} 40. Qf2 {[%emt 0:00:50]} Rc3 {[%emt 0:00:26]} 41. Kg1 {[%emt 0:01:41]} Rxa3 {[%emt 0:00:26]} 42. Rg3 {[%emt 0:00:16]} Rxg3+ {[%emt 0:00:29]} 43. Qxg3 {[%emt 0:00:23]} Qh5 {[%emt 0:00:05]} 44. f5 {[%emt 0:00:07]} Be2 {[%emt 0:01:08]} 45. f6 {[%emt 0:00:05]} gxf6 {[%emt 0:00:29]} 46. Rxf6 {[%emt 0:02:23]} Bg4 {[%emt 0:00:37]} 47. Qb8+ {[%emt 0:00:00]} 1-0

[Event "Navidad Barcelona IM2 2024"]
[Site "Barcelona"]
[Date "2024.12.26"]
[Round "1.3"]
[White "Fuentes Guinot, Alejandro"]
[Black "Martin Barcelo, Carles"]
[Result "0-1"]
[ECO "E01"]
[WhiteElo "2262"]
[BlackElo "2257"]
[Annotator "RC"]
[PlyCount "92"]
[EventDate "2024.12.26"]
[EventCountry "ESP"]
[SourceTitle "playchess.com"]
[Source "ChessBase"]
[SourceQuality "1"]
[TimeControl "5400+30"]

1. d4 {[%emt 0:09:43]} d5 {[%emt 0:00:45]} 2. c4 {[%emt 0:00:19]} e6 {[%emt 0:00:14]} 3. Nf3 {[%emt 0:00:21]} Nf6 {[%emt 0:00:21]} 4. g3 {[%emt 0:00:07]} h6 {[%emt 0:00:39]} 5. Bg2 {[%emt 0:00:53]} Bd6 {[%emt 0:00:11]} 6. O-O {[%emt 0:01:14]} O-O {[%emt 0:00:13]} 7. Qc2 {[%emt 0:00:41]} b6 {[%emt 0:00:37]} 8. Nc3 {[%emt 0:02:53]} Bb7 {[%emt 0:01:03]} 9. Nb5 {[%emt 0:03:17]} a6 {[%emt 0:08:48]} 10. Nxd6 {[%emt 0:00:54]} cxd6 {[%emt 0:00:07]} 11. Bf4 {[%emt 0:09:36]} Nc6 {[%emt 0:02:16]} 12. cxd5 {[%emt 0:07:20]} exd5 {[%emt 0:00:35]} 13. Rac1 {[%emt 0:10:29]} Qd7 {[%emt 0:04:33]} 14. Qb3 {[%emt 0:01:36]} b5 {[%emt 0:01:16]} 15. a4 {[%emt 0:05:39]} b4 {[%emt 0:02:16]} 16. a5 {[%emt 0:00:09]} Rac8 {[%emt 0:03:49]} 17. Bd2 {[%emt 0:05:16]} Nxa5 {[%emt 0:03:11]} 18. Qxb4 {[%emt 0:00:49]} Nc4 {[%emt 0:00:06]} 19. Qb3 {[%emt 0:03:30]} Rfe8 {[%emt 0:14:02]} 20. Rfe1 {[%emt 0:35:44]} a5 {[%emt 0:55:28]} 21. Ra1 {[%emt 0:00:00]} Bc6 {[%emt 0:00:00]} 22. Bc3 {[%emt 0:00:00]} Ne4 {[%emt 0:01:00]} 23. Qc2 {[%emt 0:00:00]} Bb5 {[%emt 0:00:00]} 24. Qd1 {[%emt 0:00:00]} a4 {[%emt 0:00:00]} 25. Nd2 {[%emt 0:00:00]} Nexd2 {[%emt 0:00:00]} 26. Bxd2 {[%emt 0:00:00]} Nxb2 {[%emt 0:00:00]} 27. Qb1 {[%emt 0:00:00]} Nc4 {[%emt 0:00:00]} 28. Bb4 {[%emt 0:00:00]} Bc6 {[%emt 0:00:00]} 29. e4 {[%emt 0:00:00]} dxe4 {[%emt 0:00:00]} 30. d5 {[%emt 0:00:00]} Bxd5 {[%emt 0:00:00]} 31. Qd1 {[%emt 0:00:00]} Bc6 {[%emt 0:00:00]} 32. Qd4 {[%emt 0:00:00]} Ne5 {[%emt 0:00:27]} 33. Rad1 {[%emt 0:06:30]} Nf3+ {[%emt 0:02:34]} 34. Bxf3 {[%emt 0:00:00]} exf3 {[%emt 0:00:02]} 35. Bc3 {[%emt 0:00:00]} f6 {[%emt 0:00:12]} 36. g4 {[%emt 0:00:00]} Re2 {[%emt 0:02:43]} 37. h3 {[%emt 0:02:00]} Rce8 {[%emt 0:00:26]} 38. Rf1 {[%emt 0:00:00]} R8e6 {[%emt 0:00:58]} 39. Qb4 {[%emt 0:00:00]} h5 {[%emt 0:00:27]} 40. Kh2 {[%emt 0:00:06]} Kh7 {[%emt 0:00:35]} 41. Qb1+ {[%emt 0:01:10]} Be4 {[%emt 0:00:19]} 42. Qb4 {[%emt 0:00:29]} hxg4 {[%emt 0:00:19]} 43. hxg4 {[%emt 0:00:10]} d5 {[%emt 0:00:50]} 44. Ra1 {[%emt 0:00:47]} Re8 {[%emt 0:00:31]} 45. Kg3 {[%emt 0:00:37]} Qc7+ {[%emt 0:00:21]} 46. Kh3 {[%emt 0:00:21]} Kg6 {[%emt 0:00:27]} 0-1

[Event "Navidad Barcelona IM2 2024"]
[Site "Barcelona"]
[Date "2024.12.26"]
[Round "1.4"]
[White "Rojas Keim, Luis"]
[Black "Serrahima Susany, Ramon"]
[Result "1-0"]
[ECO "B22"]
[WhiteElo "2326"]
[BlackElo "2020"]
[Annotator "RC"]
[PlyCount "101"]
[EventDate "2024.12.26"]
[EventCountry "ESP"]
[SourceTitle "playchess.com"]
[Source "ChessBase"]
[SourceQuality "1"]
[TimeControl "5400+30"]

1. e4 {[%emt 0:00:04]} c5 {[%emt 0:00:09]} 2. Nf3 {[%emt 0:00:06]} e6 {[%emt 0:00:10]} 3. c3 {[%emt 0:00:06]} d5 {[%emt 0:00:10]} 4. exd5 {[%emt 0:00:06]} Qxd5 {[%emt 0:00:10]} 5. d4 {[%emt 0:00:06]} Nf6 {[%emt 0:00:19]} 6. Bd3 {[%emt 0:00:11]} Be7 {[%emt 0:00:24]} 7. dxc5 {[%emt 0:03:33]} Bxc5 {[%emt 0:05:44]} 8. O-O {[%emt 0:00:45]} Nc6 {[%emt 0:03:43]} 9. Bg5 {[%emt 0:05:28]} Be7 {[%emt 0:14:27]} 10. Qe2 {[%emt 0:03:35]} h6 {[%emt 0:07:15]} 11. Bf4 {[%emt 0:11:35]} O-O {[%emt 0:04:59]} 12. Rd1 {[%emt 0:01:31]} Qh5 {[%emt 0:00:54]} 13. Nbd2 {[%emt 0:04:56]} Re8 {[%emt 0:08:41]} 14. Ne4 {[%emt 0:01:13]} Nxe4 {[%emt 0:07:51]} 15. Bxe4 {[%emt 0:02:47]} Bf8 {[%emt 0:04:45]} 16. Bd6 {[%emt 0:04:38]} Ne7 {[%emt 0:04:49]} 17. Qc2 {[%emt 0:09:15]} f5 {[%emt 0:04:43]} 18. Bd3 {[%emt 0:02:35]} Nd5 {[%emt 0:02:44]} 19. Bxf8 {[%emt 0:01:29]} Rxf8 {[%emt 0:28:03]} 20. Qd2 {[%emt 0:06:13]} b6 {[%emt 0:00:00]} 21. Bc4 {[%emt 0:06:55]} Rd8 {[%emt 0:00:00]} 22. Nd4 {[%emt 0:00:33]} Kh7 {[%emt 0:00:00]} 23. Qe2 {[%emt 0:09:41]} Qxe2 {[%emt 0:00:00]} 24. Bxe2 {[%emt 0:01:33]} Bd7 {[%emt 0:00:00]} 25. Bf3 {[%emt 0:01:42]} Rac8 {[%emt 0:00:00]} 26. Rd2 {[%emt 0:03:17]} Nc7 {[%emt 0:00:00]} 27. Nxf5 {[%emt 0:03:39]} exf5 {[%emt 0:00:00]} 28. Rad1 {[%emt 0:00:06]} Ne6 {[%emt 0:00:00]} 29. Rxd7 {[%emt 0:00:13]} Rxd7 {[%emt 0:00:00]} 30. Rxd7 {[%emt 0:00:04]} Nc5 {[%emt 0:00:02]} 31. Rd2 {[%emt 0:01:38]} Re8 {[%emt 0:00:11]} 32. Kf1 {[%emt 0:00:37]} Re7 {[%emt 0:00:11]} 33. g3 {[%emt 0:01:08]} Kg6 {[%emt 0:00:12]} 34. h4 {[%emt 0:00:45]} Kf6 {[%emt 0:00:35]} 35. Bd1 {[%emt 0:01:23]} Ne4 {[%emt 0:00:35]} 36. Rd4 {[%emt 0:00:09]} g5 {[%emt 0:02:28]} 37. hxg5+ {[%emt 0:00:11]} hxg5 {[%emt 0:00:04]} 38. Bc2 {[%emt 0:00:08]} Nc5 {[%emt 0:01:44]} 39. b4 {[%emt 0:01:02]} Ne6 {[%emt 0:00:40]} 40. Rd5 {[%emt 0:00:22]} Ng7 {[%emt 0:00:41]} 41. c4 {[%emt 0:01:23]} Re5 {[%emt 0:01:07]} 42. Rd4 {[%emt 0:02:07]} Ne6 {[%emt 0:00:30]} 43. Rd7 {[%emt 0:00:15]} a5 {[%emt 0:00:53]} 44. a3 {[%emt 0:04:17]} axb4 {[%emt 0:01:40]} 45. axb4 {[%emt 0:00:01]} Nf8 {[%emt 0:00:16]} 46. Rb7 {[%emt 0:01:09]} Re6 {[%emt 0:00:15]} 47. Bb3 {[%emt 0:00:07]} Rc6 {[%emt 0:01:20]} 48. c5 {[%emt 0:00:39]} bxc5 {[%emt 0:00:08]} 49. Rf7+ {[%emt 0:00:06]} Kg6 {[%emt 0:00:11]} 50. Rxf8 {[%emt 0:00:15]} cxb4 {[%emt 0:00:12]} 51. Rb8 {[%emt 0:00:24]} 1-0

[Event "Navidad Barcelona IM2 2024"]
[Site "Barcelona"]
[Date "2024.12.26"]
[Round "1.5"]
[White "Ayats Llobera, Gerard"]
[Black "Gonzalez, Raul Omar"]
[Result "1-0"]
[ECO "B72"]
[WhiteElo "2451"]
[BlackElo "2131"]
[Annotator "ChessBase"]
[PlyCount "147"]
[EventDate "2024.12.26"]
[EventCountry "ESP"]
[SourceTitle "playchess.com"]
[Source "ChessBase"]
[SourceQuality "1"]
[TimeControl "5400+30"]

1. Nf3 {[%emt 0:00:57]} c5 {[%emt 0:00:17]} 2. e4 {[%emt 0:01:15]} d6 {[%emt 0:00:41]} 3. d4 {[%emt 0:00:53]} cxd4 {[%emt 0:00:16]} 4. Nxd4 {[%emt 0:00:14]} Nf6 {[%emt 0:00:15]} 5. Nc3 {[%emt 0:00:07]} g6 {[%emt 0:00:14]} 6. Be3 {[%emt 0:02:25]} Bg7 {[%emt 0:00:09]} 7. Be2 {[%emt 0:01:43]} Nc6 {[%emt 0:00:23]} 8. Qd2 {[%emt 0:00:34]} O-O {[%emt 0:00:44]} 9. O-O-O {[%emt 0:00:13]} Ng4 {[%emt 0:02:44]} 10. Bxg4 {[%emt 0:00:14]} Bxg4 {[%emt 0:00:03]} 11. f3 {[%emt 0:00:03]} Be6 {[%emt 0:00:58]} 12. Kb1 {[%emt 0:02:43]} Bxd4 {[%emt 0:28:31]} 13. Bxd4 {[%emt 0:00:56]} Qa5 {[%emt 0:00:16]} 14. Be3 {[%emt 0:04:12]} Rfc8 {[%emt 0:04:37]} 15. Nd5 {[%emt 0:00:45]} Qxd2 {[%emt 0:02:14]} 16. Rxd2 {[%emt 0:00:58]} b5 {[%emt 0:03:04]} 17. b3 {[%emt 0:01:30]} Rab8 {[%emt 0:01:36]} 18. Kb2 {[%emt 0:02:48]} Rb7 {[%emt 0:00:12]} 19. Ra1 {[%emt 0:04:09]} a5 {[%emt 0:03:48]} 20. a4 {[%emt 0:03:25]} b4 {[%emt 0:01:18]} 21. Rc1 {[%emt 0:05:28]} Rcb8 {[%emt 0:02:05]} 22. h3 {[%emt 0:03:52]} f6 {[%emt 0:00:50]} 23. g4 {[%emt 0:06:08]} Kf7 {[%emt 0:00:33]} 24. f4 {[%emt 0:02:12]} Bd7 {[%emt 0:04:20]} 25. Bf2 {[%emt 0:01:03]} Nd8 {[%emt 0:01:20]} 26. Ne3 {[%emt 0:01:31]} Ne6 {[%emt 0:02:27]} 27. Nc4 {[%emt 0:12:06]} Nxf4 {[%emt 0:01:26]} 28. Be3 {[%emt 0:01:29]} Ne6 {[%emt 0:02:29]} 29. Rd5 {[%emt 0:05:04]} Bc6 {[%emt 0:00:52]} 30. Nxa5 {[%emt 0:00:44]} Bxd5 {[%emt 0:01:52]} 31. exd5 {[%emt 0:00:08]} Nc7 {[%emt 0:02:26]} 32. Rd1 {[%emt 0:10:03]} Ke8 {[%emt 0:00:19]} 33. Nxb7 {[%emt 0:00:45]} Rxb7 {[%emt 0:00:07]} 34. Rd4 {[%emt 0:05:35]} Kd7 {[%emt 0:00:20]} 35. Bd2 {[%emt 0:01:41]} Na6 {[%emt 0:00:20]} 36. g5 {[%emt 0:00:40]} fxg5 {[%emt 0:01:36]} 37. Bxg5 {[%emt 0:20:27]} e5 {[%emt 0:01:08]} 38. dxe6+ {[%emt 0:00:00]} Kxe6 {[%emt 0:00:02]} 39. Rc4 {[%emt 0:00:00]} Kd5 {[%emt 0:02:40]} 40. Bd2 {[%emt 0:00:00]} h5 {[%emt 0:00:27]} 41. h4 {[%emt 0:00:00]} Rb8 {[%emt 0:00:40]} 42. Rf4 {[%emt 0:00:00]} Ke6 {[%emt 0:02:01]} 43. Kc1 {[%emt 0:00:00]} d5 {[%emt 0:01:42]} 44. Be3 {[%emt 0:00:00]} Ke7 {[%emt 0:03:21]} 45. Kd2 {[%emt 0:00:00]} Rc8 {[%emt 0:00:49]} 46. Bd4 {[%emt 0:00:00]} Rc6 {[%emt 0:00:06]} 47. Bg7 {[%emt 0:00:00]} Rb6 {[%emt 0:03:06]} 48. Bh6 {[%emt 0:05:30]} Kd7 {[%emt 0:01:07]} 49. Rf7+ {[%emt 0:00:00]} Ke6 {[%emt 0:00:36]} 50. Ra7 {[%emt 0:00:00]} Kf5 {[%emt 0:00:53]} 51. Be3 {[%emt 0:00:00]} Rc6 {[%emt 0:00:50]} 52. Rf7+ {[%emt 0:00:00]} Kg4 {[%emt 0:03:55]} 53. Rf4+ {[%emt 0:00:00]} Kg3 {[%emt 0:02:38]} 54. Rd4 {[%emt 0:00:00]} Nc5 {[%emt 0:06:10]} 55. Rxd5 {[%emt 0:00:00]} Ne4+ {[%emt 0:00:20]} 56. Kd3 {[%emt 0:00:00]} Kf3 {[%emt 0:05:40]} 57. Bd4 {[%emt 0:00:00]} Nf2+ {[%emt 0:00:49]} 58. Bxf2 {[%emt 0:00:00]} Kxf2 {[%emt 0:00:02]} 59. Rb5 {[%emt 0:01:22]} Rc3+ {[%emt 0:05:16]} 60. Kd2 {[%emt 0:00:16]} Rg3 {[%emt 0:00:00]} 61. Rxb4 {[%emt 0:00:12]} Rg4 {[%emt 0:00:00]} 62. c3 {[%emt 0:01:34]} g5 {[%emt 0:00:03]} 63. hxg5 {[%emt 0:04:06]} Rxb4 {[%emt 0:00:39]} 64. cxb4 {[%emt 0:00:00]} h4 {[%emt 0:00:05]} 65. g6 {[%emt 0:01:00]} h3 {[%emt 0:00:05]} 66. g7 {[%emt 0:00:00]} h2 {[%emt 0:00:05]} 67. g8=Q {[%emt 0:00:00]} h1=Q {[%emt 0:00:09]} 68. Qf7+ {[%emt 0:00:00]} Kg3 {[%emt 0:00:10]} 69. Qg6+ {[%emt 0:00:00]} Kf4 {[%emt 0:00:08]} 70. Qf6+ {[%emt 0:00:00]} Kg4 {[%emt 0:00:08]} 71. Qd4+ {[%emt 0:00:00]} Kg5 {[%emt 0:04:28]} 72. b5 {[%emt 0:00:20]} Qg2+ {[%emt 0:00:00]} 73. Kc3 {[%emt 0:00:38]} Qa2 {[%emt 0:00:00]} 74. Qd2+ {[%emt 0:00:06]} 1-0

[Event "Navidad Barcelona IM2 2024"]
[Site "Barcelona"]
[Date "2024.12.27"]
[Round "2.1"]
[White "Cruz, Jonathan"]
[Black "Gonzalez, Raul Omar"]
[Result "1-0"]
[ECO "A22"]
[WhiteElo "2342"]
[BlackElo "2131"]
[Annotator "TA"]
[PlyCount "95"]
[EventDate "2024.12.26"]
[EventCountry "ESP"]
[SourceTitle "playchess.com"]
[Source "ChessBase"]
[SourceQuality "1"]
[TimeControl "5400+30"]

{[%evp 10,95,48,22,22,12,27,31,16,11,6,0,5,-14,-19,-8,0,-47,-42,-31,-37,-28,-35,-50,-39,-31,-26,-38,-31,-44,-27,-67,-25,-38,-29,-87,-59,-65,0,0,0,0,-12,-2,45,15,99,93,109,108,228,227,233,116,197,187,201,186,175,173,348,347,365,342,936,390,912,394,397,400,353,322,281,262,2093,1933,29989,29990,29990,29987,29987,29988,29996,29997,29997,29998,29998,29999]} 1. Nf3 {[%emt 0:09:14]} d6 {[%emt 0:02:03]} 2. g3 {[%emt 0:02:20]} e5 {[%emt 0:00:46]} 3. Bg2 {[%emt 0:00:30]} Nf6 {[%emt 0:07:04]} 4. O-O {[%emt 0:02:31]} Be7 {[%emt 0:01:21]} 5. c4 {[%emt 0:02:00]} O-O {[%emt 0:00:51]} 6. Nc3 {[%emt 0:08:50]} c5 {[%emt 0:02:29]} 7. e3 {[%emt 0:03:21]} Be6 {[%emt 0:01:31]} 8. b3 {[%emt 0:02:36]} Nc6 {[%emt 0:00:09]} 9. Ng5 {[%emt 0:02:23]} Bg4 {[%emt 0:00:28]} 10. Qc2 {[%emt 0:07:14]} h6 {[%emt 0:00:35]} 11. Nf3 {[%emt 0:01:45]} Qd7 {[%emt 0:00:23]} 12. Bb2 {[%emt 0:00:31]} Bf5 {[%emt 0:00:41]} 13. Qd1 {[%emt 0:01:12]} (13. e4 $11 {might be stronger.} Bg4 14. Nd5) 13... Bd3 $15 {[%emt 0:01:23]} 14. Ne2 $1 {[%emt 0:00:24]} b5 {[%emt 0:08:05]} 15. cxb5 {[%emt 0:03:28]} Bxb5 {[%emt 0:01:50]} 16. d3 {[%emt 0:02:42]} Rab8 {[%emt 0:06:38]} 17. Nc3 {[%emt 0:04:21]} Ba6 {[%emt 0:00:10]} 18. Re1 {[%emt 0:00:11]} Nb4 {[%emt 0:04:19]} 19. Bf1 {[%emt 0:00:20]} Bd8 {[%emt 0:08:35]} 20. Be2 {[%emt 0:03:04]} Ba5 {[%emt 0:00:50]} 21. Rf1 {[%emt 0:04:50]} Qh3 {[%emt 0:04:24]} 22. Nh4 {[%emt 0:06:07]} (22. Re1 $11) 22... g5 {[%emt 0:03:23]} 23. Ne4 {[%emt 0:01:36]} Qe6 {[%emt 0:00:48]} (23... Nxe4 $15 24. Bg4 Qxf1+ 25. Qxf1 gxh4) 24. Nxf6+ $11 {[%emt 0:00:54]} Qxf6 {[%emt 0:00:10]} 25. Ng2 {[%emt 0:00:26]} Qg6 {[%emt 0:01:36][%cal Rb4d3]} 26. e4 {[%emt 0:04:53]} Bc8 {[%emt 0:04:09]} (26... d5 $11) 27. Bh5 {[%emt 0:04:47]} (27. f4 {is interesting.} Bh3 28. Bh5 Qg7 29. fxg5 hxg5 30. g4) 27... Qe6 {[%emt 0:00:50]} (27... Qh7 $11) 28. Ne3 $16 {[%emt 0:00:34]} Bb6 {[%emt 0:04:11]} 29. Bg4 {[%emt 0:03:15]} Qe8 {[%emt 0:05:20]} (29... Qg6 $16) 30. Bxc8 $18 {[%emt 0:02:23]} Qxc8 {[%emt 0:01:42]} 31. Kh1 {[%emt 0:01:13]} (31. Nf5 $18 {and White stays clearly on top.} Kh7 32. Kg2 (32. Nxd6 Qe6 $16)) 31... f5 {[%emt 0:09:05]} 32. a3 {[%emt 0:01:35]} (32. Nxf5 $6 Rxf5 33. exf5 Qxf5 $16) (32. exf5 $6 Kh7 33. Kg1 Qb7 $16) 32... Nc6 {[%emt 0:00:06]} 33. Qh5 {[%emt 0:00:40]} (33. exf5 $6 Ne7 $16) 33... Kh7 {[%emt 0:00:24] Inhibits Qg6+.} 34. Nxf5 $40 {[%emt 0:00:55][%mdl 128] White attacks with force.} ({Don't do} 34. exf5 $6 Qe8 35. Qf3 Ne7) 34... Rxf5 $2 {[%emt 0:00:32]} (34... Qe6 35. f4 gxf4 36. gxf4 c4) 35. exf5 {[%emt 0:00:05]} Qxf5 {[%emt 0:00:25]} 36. f4 {[%emt 0:00:37]} Qxd3 $2 {[%emt 0:01:25]} (36... exf4 37. Rxf4 Qd5+ 38. Qf3 Qxf3+ 39. Rxf3 Bd8 40. Rf7+ Kg6) 37. Qf7+ {[%emt 0:03:56]} Kh8 {[%emt 0:00:10]} 38. Qf6+ {[%emt 0:01:02]} (38. Rae1 $142) 38... Kh7 {[%emt 0:00:03] and ...Qd5+ should not be overlooked} 39. fxg5 {[%emt 0:00:55]} (39. fxe5 Qe4+ 40. Qf3 Qxf3+ 41. Rxf3 Nxe5 42. Bxe5 dxe5 $18) 39... Qe4+ {[%emt 0:02:02]} 40. Rf3 {[%emt 0:00:23]} hxg5 {[%emt 0:01:11]} 41. Qf7+ {[%emt 0:00:04]} Kh6 $2 {[%emt 0:00:23] [#]} (41... Kh8 42. Raf1 g4) 42. h4 $1 {[%emt 0:00:43][%mdl 512] Intending hxg5+ and mate.} Nd4 {[%emt 0:05:25]} (42... Bd8 43. Raf1) 43. Bxd4 {[%emt 0:03:35]} cxd4 {[%emt 0:01:00]} 44. Kh2 {[%emt 0:00:40]} Bd8 {[%emt 0:01:38]} 45. Raf1 {[%emt 0:00:27]} gxh4 {[%emt 0:02:13] [#]} 46. Rf6+ $1 {[%emt 0:00:22][%mdl 512]} Bxf6 {[%emt 0:00:08]} 47. Rxf6+ {[%emt 0:00:08]} Kg5 {[%emt 0:00:37]} 48. Qg7+ {[%emt 0:00:10]} 1-0

[Event "Navidad Barcelona IM2 2024"]
[Site "Barcelona"]
[Date "2024.12.27"]
[Round "2.2"]
[White "Serrahima Susany, Ramon"]
[Black "Ayats Llobera, Gerard"]
[Result "0-1"]
[ECO "B80"]
[WhiteElo "2020"]
[BlackElo "2451"]
[Annotator "TA"]
[PlyCount "72"]
[EventDate "2024.12.26"]
[EventCountry "ESP"]
[SourceTitle "playchess.com"]
[Source "ChessBase"]
[SourceQuality "1"]
[TimeControl "5400+30"]

{[%evp 21,72,72,77,50,60,31,53,28,36,9,52,0,0,0,-9,-84,-75,-85,0,0,-19,-14,0,0,0,0,0,0,0,0,129,40,149,156,158,147,257,0,0,-556,-570,-570,-553,-602,-562,-557,-361,-547,-518,-1274,-1222,-1291,-567]} 1. e4 {[%emt 0:00:02]} c5 {[%emt 1:31:00]} 2. Nf3 {[%emt 0:00:10]} e6 {[%emt 0:00:00]} 3. d4 {[%emt 0:00:11]} cxd4 {[%emt 0:00:00]} 4. Nxd4 {[%emt 0:00:10]} Nf6 {[%emt 0:00:00]} 5. Nc3 {[%emt 0:00:20]} d6 {[%emt 0:00:00]} 6. Be3 {[%emt 0:01:35]} Nc6 {[%emt 0:00:00]} 7. f3 {[%emt 0:01:09]} Be7 {[%emt 0:00:00]} 8. Qd2 {[%emt 0:01:55]} a6 {[%emt 0:00:00]} 9. g4 {[%emt 0:05:27][%cal Bg2g4,Bg4g5][%mdl 32]} Qc7 {[%emt 0:00:00]} 10. O-O-O {[%emt 0:03:01]} b5 {[%emt 0:00:00][%cal Bb7b5,Bb5b4][%mdl 32]} 11. g5 {[%emt 0:02:16]} Nd7 {[%emt 0:00:00]} 12. f4 {[%emt 0:14:47]} b4 {[%emt 0:00:00] Hoping for ...Nxd4.} 13. Nce2 {[%emt 0:09:13]} Bb7 {[%emt 0:00:00]} 14. Ng3 {[%emt 0:12:30] White is slightly better.} Nc5 {[%emt 0:00:00]} 15. Kb1 {[%emt 0:07:37]} O-O {[%emt 0:00:00]} 16. f5 {[%emt 0:07:23]} ({White should play} 16. Bg2 $1 $14) 16... Nxd4 $11 {[%emt 0:00:00]} 17. Qxd4 {[%emt 0:02:32] Black must now prevent f6.} Rfc8 {[%emt 0:00:00]} 18. Rc1 {[%emt 0:07:47] [#]} (18. Qxb4 exf5 (18... Nxe4 19. Bd3 $11) 19. Qc3 Nxe4 20. Qxc7 Rxc7 $17) (18. f6 $11 {keeps the balance.} Bf8 (18... Nxe4 19. Bd3 $15) 19. Bg2) 18... e5 $1 $17 {[%emt 0:00:00]} 19. Qxb4 {[%emt 0:07:12][%cal Of5f6] [#]} a5 {[%emt 0:00:00]} (19... Rab8 $1 $17 {[%cal Ob7e4]} 20. Bxc5 dxc5) 20. Qe1 $11 {[%emt 0:06:27][%cal Of5f6]} Nxe4 {[%emt 0:00:00]} 21. Rg1 {[%emt 0:00:28][%cal Bh1g1,Bg1g3,Bg3h3][%mdl 32]} g6 {[%emt 0:00:00]} (21... Bxg5 $2 22. Nxe4 Bxe4 23. Rxg5 $18 (23. Bxg5 Bxf5 24. Ka1 Rab8 $18)) (21... Nxg5 22. Nh5 h6 23. h4 $16) 22. fxg6 {[%emt 0:01:51]} hxg6 {[%emt 0:00:00]} 23. h4 {[%emt 0:00:44]} a4 {[%emt 0:00:00]} 24. a3 {[%emt 0:01:44]} Nxg3 {[%emt 0:00:00]} 25. Rxg3 {[%emt 0:00:25][%cal Oh4h5]} d5 {[%emt 0:00:00]} (25... Be4 $11 {remains equal.} 26. Bd3 Bxd3 27. cxd3 Qb7) 26. Bd2 {[%emt 0:00:42]} (26. h5 $1 $16) 26... d4 {[%emt 0:00:39] [#]} (26... Bd6 $14) 27. h5 $1 $16 {[%emt 0:00:28][%mdl 512]} gxh5 {[%emt 0:05:38]} 28. Rh3 {[%emt 0:01:30]} Rab8 {[%emt 0:02:16]} (28... Kg7 $16) 29. Qe2 $2 {[%emt 0:00:28]} (29. Rxh5 $18 {Qh4 would now be deadly.} Bf3 30. Rh6 Rxb2+ (30... Bxa3 $2 {perishes.} 31. Qh4 $18) 31. Kxb2 Rb8+ 32. Ka1 Bxa3 33. Rb1 Rxb1+ 34. Qxb1) 29... Kg7 $1 $11 {[%emt 0:01:19]} 30. Qxh5 $2 {[%emt 0:01:21][%mdl 8192]} (30. Rxh5 $11 Bd5 31. Ba5 Bxa3 32. Bxc7 Rxb2+ 33. Ka1 Ra2+ 34. Kb1 Rb8+ 35. Bxb8 (35. Qb5 Rb2+ 36. Ka1 Ra2+ 37. Kb1 Rxb5+ 38. Bxb5 Kg6 $11) 35... Rb2+ 36. Ka1 Ra2+ 37. Kb1 Rb2+ 38. Ka1 Ra2+ 39. Kb1) 30... Rh8 $19 {[%emt 0:00:05]} 31. Qg4 {[%emt 0:02:12]} Bc8 {[%emt 0:00:35]} 32. Qg3 {[%emt 0:00:01] aiming for Rxh8.} Bxh3 {[%emt 0:00:08]} 33. Bxh3 {[%emt 0:00:10]} Bd6 {[%emt 0:02:38] And now ...e4 would win.} 34. Ka1 {[%emt 0:02:31]} (34. Bg2 $142 e4 35. Qf2) 34... e4 {[%emt 0:00:56] Black is clearly winning.} 35. Qg2 {[%emt 0:00:40]} (35. Qg4 $142) 35... e3 {[%emt 0:00:33]} 36. Be1 {[%emt 0:00:27]} Qb6 {[%emt 0:01:28] Weighted Error Value: White=0.92/Black=0.32.  Loses game:     	White=1     	---        Missed win:     	White=1     	---        Mistake:       	White=5     	Black=4      Inaccurate:     	White=1     	---        OK:         	White=9     	Black=9      Best:        	White=1     	Black=4      Strong:       	---       	Black=2      Brilliant:      	White=1     	---} (36... Bxa3 $142 37. bxa3 d3) 0-1